fUST/lending_fUST_20250615
["ID","MTS","AMOUNT","RATE_DAILY","PERIOD"]
[365794853,1749916831668,200.0,0.000238,120]
[365794857,1749917016682,800.0,0.00019974,2]
[365795114,1749917191086,200.0,0.00024606,120]
[365795116,1749917240257,-338.566052,0.00020187,2]
[365795117,1749917240278,-442.87257805,0.00020295,2]
[365795118,1749917240300,-1200.0,0.00020477,2]
[365795119,1749917240322,-300.0,0.00020477,2]
[365795120,1749917240344,-7501.68288459,0.00020478,2]
[365795123,1749917431127,200.0,0.00023985,120]
[365795158,1749917432364,-300.0,0.00020477,2]
[365795160,1749917432374,-300.0,0.00020477,2]
[365795161,1749917432383,-300.0,0.00020477,2]
[365795162,1749917432393,-1200.0,0.00020477,2]
[365795164,1749917432403,-2703.54267226,0.00020478,2]
[365795166,1749917432419,-14694.77444315,0.00020478,2]
[365795168,1749917432429,-247.384733,0.00020702,2]
[365795170,1749917432439,-417.4584567,0.0002079,2]
[365795172,1749917432448,-187.847287,0.00020876,2]
[365795173,1749917432458,-162.95482579,0.00021054,2]
[365795174,1749917432467,-21289.67008536,0.00021153,2]
[365795177,1749917432582,-500.0,0.00021152,2]
[365795178,1749917432592,-251.9365963,0.00021152,2]
[365795179,1749917432602,-500.0,0.00021152,2]
[365795180,1749917432611,-161.18398629,0.00021152,2]
[365795181,1749917432621,-500.0,0.00021152,2]
[365795182,1749917432631,-500.0,0.00021152,2]
[365795183,1749917432641,-500.0,0.00021152,2]
[365795184,1749917432650,-500.0,0.00021152,2]
[365795185,1749917432660,-500.0,0.00021152,2]
[365795186,1749917432670,-500.0,0.00021152,2]
[365795187,1749917432679,-883.04386605,0.00021153,2]
[365795206,1749917438410,-500.0,0.00021152,2]
[365795207,1749917438419,-537.03993376,0.00021152,2]
[365795208,1749917438429,-500.0,0.00021152,2]
[365795209,1749917438438,-500.0,0.00021152,2]
[365795210,1749917438448,-500.0,0.00021152,2]
[365795211,1749917438458,-640.44365741,0.00021152,2]
[365795212,1749917438467,-500.0,0.00021152,2]
[365795213,1749917438477,-500.0,0.00021152,2]
[365795215,1749917438486,-500.0,0.00021152,2]
[365795216,1749917438496,-500.0,0.00021152,2]
[365795217,1749917438505,-500.0,0.00021152,2]
[365795218,1749917438514,-500.0,0.00021152,2]
[365795219,1749917438524,-500.0,0.00021152,2]
[365795220,1749917438533,-500.0,0.00021152,2]
[365795221,1749917438542,-500.0,0.00021152,2]
[365795222,1749917438554,-280.38577418,0.00021152,2]
[365795223,1749917438566,-500.0,0.00021152,2]
[365795224,1749917438576,-500.0,0.00021152,2]
[365795225,1749917438586,-500.0,0.00021152,2]
[365795226,1749917438596,-500.0,0.00021152,2]
[365795227,1749917438606,-27827.28604859,0.00021153,2]
[365795228,1749917438616,-500.0,0.00021154,2]
[365795229,1749917438626,-168.0,0.00021618,2]
[365795230,1749917438636,-3571.23153988,0.00021817,2]
[365795231,1749917438646,-447.17023464,0.00021817,2]
[365795232,1749917438656,-16000.0,0.0002189,2]
[365795233,1749917438666,-582.96652135,0.000219,6]
[365795234,1749917438675,-161.935,0.00021915,2]
[365795235,1749917438685,-185.58303148,0.00021916,2]
[365795236,1749917438699,-500.0,0.00021916,2]
[365795237,1749917438716,-500.0,0.00021916,2]
[365795238,1749917438727,-584.20514253,0.00021916,2]
[365795239,1749917438736,-500.0,0.00021916,2]
[365795240,1749917438746,-160.0,0.00021916,2]
[365795241,1749917438756,-500.0,0.00021917,2]
[365795242,1749917438766,-370.0,0.00021917,4]
[365795243,1749917438776,-460.0,0.00021917,4]
[365795244,1749917438786,-440.0,0.00021917,4]
[365795245,1749917438796,-440.0,0.00021917,4]
[365795246,1749917438805,-500.0,0.00021917,4]
[365795247,1749917438815,-500.0,0.00021917,4]
[365795248,1749917438824,-500.0,0.00021917,4]
[365795249,1749917438834,-500.0,0.00021917,4]
[365795250,1749917438844,-500.0,0.00021917,4]
[365795251,1749917438854,-582.06435634,0.00021917,4]
[365795252,1749917438863,-440.0,0.00021917,4]
[365795253,1749917438873,-460.0,0.00021917,4]
[365795254,1749917438883,-430.0,0.00021917,4]
[365795255,1749917438893,-460.0,0.00021917,4]
[365795256,1749917438903,-460.0,0.00021917,4]
[365795257,1749917438912,-460.0,0.00021917,4]
[365795258,1749917438922,-460.0,0.00021917,4]
[365795259,1749917438932,-460.0,0.00021917,4]
[365795260,1749917438941,-460.0,0.00021917,4]
[365795261,1749917438952,-327.61351071,0.00021917,4]
[365795262,1749917438961,-248.34,0.00021917,4]
[365795263,1749917438971,-460.0,0.00021917,4]
[365795264,1749917438980,-460.0,0.00021917,4]
[365795265,1749917438990,-476.00120164,0.00021917,4]
[365795267,1749917438999,-397.95077037,0.00021917,4]
[365795268,1749917439009,-460.0,0.00021917,4]
[365795269,1749917439018,-440.0,0.00021917,4]
[365795270,1749917439027,-460.0,0.00021917,4]
[365795271,1749917439036,-460.27115346,0.00021917,4]
[365795272,1749917439046,-460.0,0.00021917,4]
[365795273,1749917439055,-460.0,0.00021917,4]
[365795274,1749917439064,-460.0,0.00021917,4]
[365795275,1749917439073,-460.0,0.00021917,4]
[365795276,1749917439086,-375.77129826,0.00021917,4]
[365795277,1749917439096,-460.0,0.00021917,4]
[365795278,1749917439106,-430.0,0.00021917,4]
[365795279,1749917439115,-117.47651537,0.00021917,4]
[365795280,1749917439143,-342.52348463,0.00021917,4]
[365795281,1749917439153,-430.0,0.00021917,4]
[365795282,1749917439163,-460.0,0.00021917,4]
[365795283,1749917439172,-460.0,0.00021917,4]
[365795284,1749917439182,-460.0,0.00021917,4]
[365795285,1749917439191,-495.1144221,0.00021917,4]
[365795286,1749917439200,-440.0,0.00021917,4]
[365795287,1749917439210,-460.0,0.00021917,4]
[365795288,1749917439219,-430.0,0.00021917,4]
[365795289,1749917439229,-460.0,0.00021917,4]
[365795290,1749917439238,-430.0,0.00021917,4]
[365795291,1749917439248,-460.0,0.00021917,4]
[365795292,1749917439257,-440.0,0.00021917,4]
[365795293,1749917439266,-430.0,0.00021917,4]
[365795294,1749917439275,-460.0,0.00021917,4]
[365795295,1749917439284,-400.0,0.00021917,4]
[365795296,1749917439294,-460.0,0.00021917,4]
[365795297,1749917439303,-460.0,0.00021917,4]
[365795298,1749917439312,-430.0,0.00021917,4]
[365795299,1749917439321,-430.0,0.00021917,4]
[365795300,1749917439331,-430.0,0.00021917,4]
[365795301,1749917439341,-430.0,0.00021917,4]
[365795302,1749917439351,-440.0,0.00021917,4]
[365795303,1749917439360,-352.90006764,0.00021917,4]
[365795304,1749917439369,-421.38255661,0.00021917,4]
[365795305,1749917439379,-400.0,0.00021917,4]
[365795306,1749917439390,-430.0,0.00021917,4]
[365795307,1749917439400,-430.0,0.00021917,4]
[365795308,1749917439409,-223.50757008,0.00021917,4]
[365795309,1749917439419,-460.0,0.00021917,4]
[365795310,1749917439429,-460.0,0.00021917,4]
[365795311,1749917439438,-345.8727525,0.00021917,4]
[365795312,1749917439447,-460.0,0.00021917,4]
[365795313,1749917439457,-325.27253663,0.00021917,4]
[365795314,1749917439467,-460.0,0.00021917,4]
[365795315,1749917439476,-405.14045033,0.00021917,4]
[365795316,1749917439486,-362.78983242,0.00021917,4]
[365795317,1749917439496,-460.0,0.00021917,4]
[365795318,1749917439505,-378.49451351,0.00021917,4]
[365795319,1749917439515,-420.0,0.00021917,4]
[365795320,1749917439524,-460.0,0.00021917,4]
[365795321,1749917439534,-460.0,0.00021917,4]
[365795322,1749917439543,-460.0,0.00021917,4]
[365795323,1749917439553,-460.0,0.00021917,4]
[365795324,1749917439563,-460.0,0.00021917,4]
[365795325,1749917439578,-460.0,0.00021917,4]
[365795326,1749917439598,-460.0,0.00021917,4]
[365795327,1749917439619,-460.0,0.00021917,4]
[365795328,1749917439640,-404.04356514,0.00021917,4]
[365795329,1749917439661,-460.0,0.00021917,4]
[365795330,1749917439682,-358.46152586,0.00021917,4]
[365795331,1749917439703,-434.63965544,0.00021917,4]
[365795332,1749917439724,-460.0,0.00021917,4]
[365795333,1749917439744,-460.0,0.00021917,4]
[365795334,1749917439764,-460.0,0.00021917,4]
[365795335,1749917439777,-460.0,0.00021917,4]
[365795336,1749917439787,-460.0,0.00021917,4]
[365795337,1749917439797,-460.0,0.00021917,4]
[365795338,1749917439806,-460.0,0.00021917,4]
[365795339,1749917439817,-360.0,0.00021917,4]
[365795340,1749917439827,-460.0,0.00021917,4]
[365795341,1749917439837,-301.44176529,0.00021917,4]
[365795342,1749917439847,-460.0,0.00021917,4]
[365795343,1749917439858,-439.85770758,0.00021917,4]
[365795344,1749917439869,-460.0,0.00021917,4]
[365795345,1749917439879,-460.0,0.00021917,4]
[365795346,1749917439888,-460.0,0.00021917,4]
[365795347,1749917439899,-460.0,0.00021917,4]
[365795348,1749917439909,-396.06911421,0.00021917,4]
[365795349,1749917439920,-460.0,0.00021917,2]
[365795350,1749917439930,-460.0,0.00021917,4]
[365795351,1749917439940,-430.0,0.00021917,4]
[365795352,1749917439950,-460.0,0.00021917,4]
[365795353,1749917439960,-460.0,0.00021917,4]
[365795354,1749917439970,-460.0,0.00021917,4]
[365795355,1749917439980,-430.0,0.00021917,4]
[365795356,1749917439990,-460.0,0.00021917,4]
[365795357,1749917440000,-609.23705451,0.00021917,4]
[365795358,1749917440010,-430.0,0.00021917,4]
[365795359,1749917440019,-460.0,0.00021917,4]
[365795360,1749917440029,-460.0,0.00021917,4]
[365795361,1749917440038,-460.0,0.00021917,4]
[365795362,1749917440048,-460.0,0.00021917,4]
[365795363,1749917440058,-601.25,0.00021917,4]
[365795364,1749917440067,-460.0,0.00021917,4]
[365795365,1749917440076,-460.0,0.00021917,4]
[365795366,1749917440086,-494.42079598,0.00021917,4]
[365795368,1749917440099,-460.0,0.00021917,4]
[365795369,1749917440109,-290.26099462,0.00021917,4]
[365795371,1749917440118,-428.51128961,0.00021917,4]
[365795372,1749917440129,-234.3847957,0.00021917,4]
[365795380,1749917440306,-460.0,0.00021917,4]
[365795382,1749917440317,-460.0,0.00021917,4]
[365795384,1749917440327,-460.0,0.00021917,4]
[365795386,1749917440337,-265.65803458,0.00021917,4]
[365795388,1749917440346,-430.0,0.00021917,4]
[365795390,1749917440356,-460.0,0.00021917,4]
[365795392,1749917440366,-460.0,0.00021917,4]
[365795393,1749917440376,-460.0,0.00021917,4]
[365795395,1749917440386,-460.0,0.00021917,4]
[365795396,1749917440395,-460.0,0.00021917,4]
[365795397,1749917440405,-460.0,0.00021917,4]
[365795398,1749917440415,-460.0,0.00021917,4]
[365795399,1749917440425,-440.0,0.00021917,4]
[365795400,1749917440434,-460.0,0.00021917,4]
[365795401,1749917440444,-460.0,0.00021917,4]
[365795402,1749917440454,-460.0,0.00021917,4]
[365795403,1749917440463,-460.0,0.00021917,4]
[365795404,1749917440472,-460.0,0.00021917,4]
[365795405,1749917440482,-378.75959522,0.00021917,4]
[365795406,1749917440491,-320.0,0.00021917,4]
[365795407,1749917440502,-460.0,0.00021917,4]
[365795408,1749917440512,-460.0,0.00021917,4]
[365795409,1749917440521,-269.53432683,0.00021917,4]
[365795410,1749917440531,-460.0,0.00021917,4]
[365795411,1749917440540,-460.0,0.00021917,4]
[365795412,1749917440549,-460.0,0.00021917,4]
[365795413,1749917440559,-460.0,0.00021917,4]
[365795414,1749917440568,-460.0,0.00021917,4]
[365795415,1749917440579,-460.0,0.00021917,4]
[365795416,1749917440590,-440.0,0.00021917,4]
[365795417,1749917440599,-440.0,0.00021917,4]
[365795418,1749917440609,-460.0,0.00021917,4]
[365795419,1749917440618,-500.0,0.00021917,4]
[365795420,1749917440628,-460.0,0.00021917,4]
[365795421,1749917440638,-460.0,0.00021917,4]
[365795422,1749917440648,-460.0,0.00021917,4]
[365795423,1749917440657,-460.0,0.00021917,4]
[365795424,1749917440667,-460.0,0.00021917,4]
[365795425,1749917440677,-420.0,0.00021917,4]
[365795426,1749917440687,-460.0,0.00021917,4]
[365795427,1749917440698,-460.0,0.00021917,4]
[365795428,1749917440707,-460.0,0.00021917,4]
[365795429,1749917440718,-440.0,0.00021917,4]
[365795430,1749917440728,-460.0,0.00021917,4]
[365795431,1749917440738,-440.0,0.00021917,4]
[365795432,1749917440748,-460.0,0.00021917,4]
[365795433,1749917440757,-410.0,0.00021917,4]
[365795434,1749917440767,-440.0,0.00021917,4]
[365795435,1749917440776,-460.0,0.00021917,4]
[365795436,1749917440786,-460.0,0.00021917,4]
[365795437,1749917440795,-353.53665206,0.00021917,4]
[365795438,1749917440805,-401.99410861,0.00021917,4]
[365795439,1749917440815,-440.0,0.00021917,4]
[365795440,1749917440825,-440.0,0.00021917,4]
[365795441,1749917440838,-460.0,0.00021917,4]
[365795442,1749917440848,-460.0,0.00021917,4]
[365795443,1749917440858,-460.0,0.00021917,4]
[365795444,1749917440868,-460.0,0.00021917,4]
[365795445,1749917440878,-460.0,0.00021917,4]
[365795446,1749917440888,-460.0,0.00021917,4]
[365795447,1749917440898,-460.0,0.00021917,4]
[365795448,1749917440908,-460.0,0.00021917,4]
[365795449,1749917440918,-460.0,0.00021917,4]
[365795450,1749917440928,-440.0,0.00021917,4]
[365795451,1749917440937,-460.0,0.00021917,4]
[365795452,1749917440947,-460.0,0.00021917,4]
[365795453,1749917440957,-355.2196465,0.00021917,4]
[365795454,1749917440966,-312.66794337,0.00021917,4]
[365795455,1749917440975,-460.0,0.00021917,4]
[365795456,1749917440985,-460.0,0.00021917,4]
[365795457,1749917440995,-180.30474223,0.00021917,4]
[365795458,1749917441005,-460.0,0.00021917,4]
[365795459,1749917441014,-255.46489381,0.00021917,4]
[365795460,1749917441023,-548.80137931,0.00021917,4]
[365795461,1749917441033,-460.0,0.00021917,4]
[365795462,1749917441043,-460.0,0.00021917,4]
[365795463,1749917441053,-173.51602027,0.00021917,4]
[365795464,1749917441062,-362.19441621,0.00021917,4]
[365795465,1749917441072,-430.0,0.00021917,4]
[365795466,1749917441086,-460.0,0.00021917,4]
[365795467,1749917441096,-460.0,0.00021917,4]
[365795468,1749917441109,-460.0,0.00021917,4]
[365795469,1749917441119,-460.0,0.00021917,4]
[365795470,1749917441129,-607.07088979,0.00021917,2]
[365795471,1749917441138,-460.0,0.00021917,4]
[365795472,1749917441149,-400.0,0.00021917,4]
[365795473,1749917441159,-460.0,0.00021917,4]
[365795474,1749917441168,-460.0,0.00021917,4]
[365795475,1749917441179,-460.0,0.00021917,4]
[365795476,1749917441189,-431.70424533,0.00021917,4]
[365795477,1749917441199,-440.0,0.00021917,4]
[365795478,1749917441208,-203.21947115,0.00021917,4]
[365795479,1749917441218,-460.0,0.00021917,4]
[365795480,1749917441228,-460.0,0.00021917,4]
[365795481,1749917441238,-460.0,0.00021917,4]
[365795482,1749917441247,-350.13444175,0.00021917,4]
[365795483,1749917441257,-460.0,0.00021917,4]
[365795484,1749917441268,-460.0,0.00021917,4]
[365795485,1749917441277,-460.0,0.00021917,2]
[365795486,1749917441287,-430.0,0.00021917,4]
[365795487,1749917441296,-460.0,0.00021917,4]
[365795488,1749917441306,-460.0,0.00021917,4]
[365795489,1749917441316,-460.0,0.00021917,4]
[365795490,1749917441326,-362.50966734,0.00021917,4]
[365795491,1749917441337,-440.0,0.00021917,4]
[365795492,1749917441346,-460.0,0.00021917,4]
[365795493,1749917441356,-305.50578619,0.00021917,4]
[365795494,1749917441366,-460.0,0.00021917,4]
[365795495,1749917441376,-460.0,0.00021917,4]
[365795496,1749917441385,-460.0,0.00021917,4]
[365795497,1749917441395,-363.03324262,0.00021917,4]
[365795498,1749917441405,-460.0,0.00021917,4]
[365795499,1749917441414,-460.0,0.00021917,4]
[365795500,1749917441424,-460.0,0.00021917,4]
[365795501,1749917441433,-460.0,0.00021917,4]
[365795502,1749917441443,-460.0,0.00021917,4]
[365795503,1749917441452,-460.0,0.00021917,4]
[365795504,1749917441462,-408.16965099,0.00021917,4]
[365795505,1749917441471,-460.0,0.00021917,4]
[365795506,1749917441481,-460.0,0.00021917,4]
[365795507,1749917441491,-460.0,0.00021917,4]
[365795508,1749917441502,-258.96903299,0.00021917,4]
[365795509,1749917441512,-460.0,0.00021917,4]
[365795510,1749917441522,-533.35469407,0.00021917,4]
[365795511,1749917441532,-460.0,0.00021917,4]
[365795512,1749917441542,-460.0,0.00021917,4]
[365795513,1749917441552,-460.0,0.00021917,4]
[365795514,1749917441561,-2480.54,0.00021917,4]
[365795515,1749917441571,-460.0,0.00021917,4]
[365795516,1749917441581,-520.37129653,0.00021917,4]
[365795517,1749917441591,-460.0,0.00021917,4]
[365795518,1749917441602,-460.0,0.00021917,4]
[365795519,1749917441611,-460.0,0.00021917,4]
[365795520,1749917441621,-649.92,0.00021917,4]
[365795521,1749917441630,-460.0,0.00021917,4]
[365795522,1749917441640,-1012.69,0.00021917,4]
[365795523,1749917441650,-460.0,0.00021917,4]
[365795524,1749917441659,-240.0,0.00021917,4]
[365795525,1749917441669,-460.0,0.00021917,4]
[365795526,1749917441678,-460.0,0.00021917,4]
[365795527,1749917441688,-460.0,0.00021917,4]
[365795528,1749917441697,-460.0,0.00021917,4]
[365795529,1749917441707,-500.0,0.00021917,4]
[365795530,1749917441716,-460.0,0.00021917,4]
[365795531,1749917441726,-460.0,0.00021917,4]
[365795532,1749917441735,-460.0,0.00021917,4]
[365795533,1749917441745,-460.0,0.00021917,4]
[365795534,1749917441754,-301.54794634,0.00021917,4]
[365795535,1749917441764,-263.71492334,0.00021917,4]
[365795536,1749917441774,-460.0,0.00021917,4]
[365795537,1749917441783,-310.0,0.00021917,4]
[365795538,1749917441793,-460.0,0.00021917,4]
[365795539,1749917441803,-460.0,0.00021917,4]
[365795540,1749917441812,-465.33,0.00021917,4]
[365795541,1749917441823,-617.49,0.00021917,4]
[365795542,1749917441834,-460.0,0.00021917,4]
[365795543,1749917441844,-290.0,0.00021917,4]
[365795544,1749917441854,-460.0,0.00021917,4]
[365795545,1749917441863,-460.0,0.00021917,4]
[365795546,1749917441873,-379.94098578,0.00021917,4]
[365795547,1749917441883,-460.0,0.00021917,4]
[365795548,1749917441893,-460.0,0.00021917,4]
[365795549,1749917441903,-500.0,0.00021917,4]
[365795550,1749917441912,-460.0,0.00021917,4]
[365795551,1749917441922,-460.0,0.00021917,4]
[365795552,1749917441931,-460.0,0.00021917,4]
[365795553,1749917441941,-460.0,0.00021917,4]
[365795554,1749917441951,-460.0,0.00021917,4]
[365795555,1749917441961,-460.0,0.00021917,4]
[365795556,1749917441970,-460.0,0.00021917,4]
[365795557,1749917441980,-749.09,0.00021917,4]
[365795558,1749917441989,-460.0,0.00021917,4]
[365795559,1749917441998,-460.0,0.00021917,4]
[365795560,1749917442009,-460.0,0.00021917,4]
[365795561,1749917442019,-460.0,0.00021917,4]
[365795562,1749917442029,-460.0,0.00021917,4]
[365795563,1749917442039,-460.0,0.00021917,4]
[365795564,1749917442048,-245.34928135,0.00021917,4]
[365795565,1749917442058,-460.0,0.00021917,4]
[365795566,1749917442068,-460.0,0.00021917,4]
[365795567,1749917442077,-460.0,0.00021917,4]
[365795568,1749917442087,-310.0,0.00021917,4]
[365795569,1749917442099,-460.0,0.00021917,4]
[365795570,1749917442108,-460.0,0.00021917,4]
[365795571,1749917442118,-460.0,0.00021917,4]
[365795572,1749917442127,-480.16,0.00021917,4]
[365795573,1749917442136,-594.46771834,0.00021917,4]
[365795574,1749917442146,-460.0,0.00021917,4]
[365795575,1749917442156,-460.0,0.00021917,4]
[365795576,1749917442165,-287.72620585,0.00021917,4]
[365795577,1749917442178,-460.0,0.00021917,4]
[365795578,1749917442188,-460.0,0.00021917,4]
[365795579,1749917442198,-484.22,0.00021917,4]
[365795580,1749917442208,-460.0,0.00021917,4]
[365795581,1749917442218,-460.0,0.00021917,4]
[365795582,1749917442227,-1402.17,0.00021917,4]
[365795583,1749917442236,-161.25911925,0.00021917,4]
[365795584,1749917442246,-2509.29,0.00021917,4]
[365795585,1749917442255,-400.0,0.00021917,4]
[365795586,1749917442265,-460.0,0.00021917,4]
[365795587,1749917442275,-460.0,0.00021917,4]
[365795588,1749917442284,-460.0,0.00021917,4]
[365795589,1749917442294,-339.8371341,0.00021917,4]
[365795590,1749917442304,-460.0,0.00021917,4]
[365795591,1749917442314,-460.0,0.00021917,4]
[365795592,1749917442323,-430.0,0.00021917,4]
[365795593,1749917442334,-430.0,0.00021917,4]
[365795594,1749917442343,-480.88,0.00021917,4]
[365795595,1749917442353,-460.0,0.00021917,4]
[365795596,1749917442363,-480.0,0.00021917,4]
[365795597,1749917442372,-460.0,0.00021917,4]
[365795598,1749917442382,-460.0,0.00021917,4]
[365795599,1749917442398,-460.0,0.00021917,4]
[365795600,1749917442414,-210.0,0.00021917,4]
[365795601,1749917442424,-460.0,0.00021917,4]
[365795602,1749917442434,-2710.13,0.00021917,4]
[365795603,1749917442444,-460.0,0.00021917,4]
[365795604,1749917442453,-2178.11,0.00021917,4]
[365795605,1749917442463,-460.0,0.00021917,4]
[365795606,1749917442473,-431.15458737,0.00021917,4]
[365795607,1749917442482,-460.0,0.00021917,4]
[365795608,1749917442492,-1253.41,0.00021917,4]
[365795609,1749917442502,-460.0,0.00021917,4]
[365795610,1749917442512,-460.0,0.00021917,4]
[365795611,1749917442523,-440.0,0.00021917,4]
[365795612,1749917442533,-2862.66,0.00021917,4]
[365795613,1749917442543,-460.0,0.00021917,4]
[365795614,1749917442553,-427.89493767,0.00021917,4]
[365795615,1749917442563,-1709.23,0.00021917,4]
[365795616,1749917442573,-460.0,0.00021917,4]
[365795617,1749917442584,-460.0,0.00021917,4]
[365795618,1749917442594,-441.38726579,0.00021917,4]
[365795619,1749917442605,-460.0,0.00021917,4]
[365795620,1749917442615,-460.0,0.00021917,4]
[365795621,1749917442625,-460.0,0.00021917,4]
[365795622,1749917442635,-440.0,0.00021917,4]
[365795623,1749917442644,-430.70143648,0.00021917,4]
[365795624,1749917442654,-460.0,0.00021917,4]
[365795625,1749917442663,-460.0,0.00021917,4]
[365795626,1749917442673,-430.0,0.00021917,4]
[365795627,1749917442683,-477.81,0.00021917,4]
[365795628,1749917442692,-460.0,0.00021917,4]
[365795629,1749917442702,-460.0,0.00021917,4]
[365795630,1749917442712,-460.0,0.00021917,4]
[365795631,1749917442721,-440.0,0.00021917,4]
[365795632,1749917442731,-500.0,0.00021917,4]
[365795633,1749917442740,-500.0,0.00021917,4]
[365795634,1749917442750,-500.0,0.00021917,4]
[365795635,1749917442759,-500.0,0.00021917,4]
[365795636,1749917442769,-500.0,0.00021917,4]
[365795637,1749917442778,-500.0,0.00021917,4]
[365795638,1749917442787,-460.0,0.00021917,4]
[365795639,1749917442797,-500.0,0.00021917,4]
[365795640,1749917442806,-358.907453,0.00021917,4]
[365795641,1749917442816,-460.0,0.00021917,4]
[365795642,1749917442826,-443.55693185,0.00021917,4]
[365795643,1749917442838,-460.0,0.00021917,4]
[365795644,1749917442847,-1990.39,0.00021917,4]
[365795646,1749917442857,-460.0,0.00021917,4]
[365795647,1749917442866,-460.0,0.00021917,4]
[365795648,1749917442876,-460.0,0.00021917,4]
[365795649,1749917442886,-460.0,0.00021917,4]
[365795650,1749917442895,-330.0,0.00021917,4]
[365795651,1749917442906,-296.61647403,0.00021917,4]
[365795653,1749917442915,-460.0,0.00021917,4]
[365795654,1749917442925,-440.0,0.00021917,4]
[365795656,1749917442935,-460.0,0.00021917,4]
[365795658,1749917442944,-460.0,0.00021917,4]
[365795660,1749917442953,-460.0,0.00021917,4]
[365795662,1749917442963,-460.0,0.00021917,2]
[365795663,1749917442972,-440.0,0.00021917,4]
[365795664,1749917442982,-460.0,0.00021917,4]
[365795665,1749917442991,-460.0,0.00021917,4]
[365795666,1749917443000,-430.0,0.00021917,4]
[365795667,1749917443010,-460.0,0.00021917,4]
[365795668,1749917443019,-1408.95,0.00021917,4]
[365795669,1749917443028,-460.0,0.00021917,4]
[365795670,1749917443037,-440.0,0.00021917,4]
[365795671,1749917443047,-460.0,0.00021917,4]
[365795672,1749917443056,-460.0,0.00021917,4]
[365795673,1749917443065,-1218.93,0.00021917,4]
[365795674,1749917443075,-460.0,0.00021917,4]
[365795675,1749917443086,-460.0,0.00021917,4]
[365795676,1749917443096,-1961.21,0.00021917,4]
[365795677,1749917443107,-460.0,0.00021917,4]
[365795678,1749917443116,-460.0,0.00021917,4]
[365795679,1749917443126,-430.0,0.00021917,4]
[365795680,1749917443135,-420.0,0.00021917,4]
[365795681,1749917443144,-672.05,0.00021917,4]
[365795682,1749917443154,-460.0,0.00021917,4]
[365795683,1749917443163,-460.0,0.00021917,4]
[365795684,1749917443172,-460.0,0.00021917,4]
[365795685,1749917443183,-421.84658631,0.00021917,4]
[365795686,1749917443192,-560.0,0.00021917,4]
[365795687,1749917443201,-164.57051219,0.00021917,4]
[365795688,1749917443211,-1037.98,0.00021917,4]
[365795689,1749917443220,-1260.56,0.00021917,4]
[365795690,1749917443229,-460.0,0.00021917,4]
[365795691,1749917443239,-589.35,0.00021917,4]
[365795692,1749917443248,-313.94167833,0.00021917,4]
[365795693,1749917443257,-460.0,0.00021917,4]
[365795694,1749917443266,-460.0,0.00021917,4]
[365795695,1749917443276,-460.0,0.00021917,4]
[365795696,1749917443285,-460.0,0.00021917,4]
[365795697,1749917443294,-460.0,0.00021917,4]
[365795698,1749917443303,-460.0,0.00021917,4]